[Event "Late-Titled-Tuesday-Blitz-March-12-2024"]
[Site "Chess.com"]
[Date "2024.03.12"]
[Round "7"]
[White "Matalon"]
[Black "Qingdom"]
[Result "1-0"]
[WhiteElo "2488"]
[BlackElo "2255"]
[TimeControl "180+1"]
[EndTime "15:16:38 PDT"]
[Termination "Matalon won by resignation"]

1. e4 {[%clk 0:02:40.6]} 1... c5 {[%clk 0:02:59.4]} 2. Nf3 {[%clk 0:02:38.6]}
2... Nc6 {[%clk 0:02:59.4]} 3. d4 {[%clk 0:02:38.7]} 3... cxd4 {[%clk
0:02:59.4]} 4. Nxd4 {[%clk 0:02:39.5]} 4... e5 {[%clk 0:02:59.6]} 5. Nb5 {[%clk
0:02:38.6]} 5... d6 {[%clk 0:02:59.9]} 6. N1c3 {[%clk 0:02:37.4]} 6... a6 {[%clk
0:03:00.3]} 7. Na3 {[%clk 0:02:36.8]} 7... Be7 {[%clk 0:03:00.6]} 8. Be3 {[%clk
0:02:33]} 8... b5 {[%clk 0:02:59]} 9. Nd5 {[%clk 0:02:32.4]} 9... Rb8 {[%clk
0:02:57.9]} 10. c4 {[%clk 0:02:27.2]} 10... b4 {[%clk 0:02:47.7]} 11. Nc2 {[%clk
0:02:26.2]} 11... Nf6 {[%clk 0:02:42.4]} 12. Bd3 {[%clk 0:02:26.1]} 12... O-O
{[%clk 0:02:41.4]} 13. O-O {[%clk 0:02:25.2]} 13... a5 {[%clk 0:02:39.6]} 14.
Qe2 {[%clk 0:02:20.4]} 14... Ng4 {[%clk 0:02:34]} 15. h3 {[%clk 0:02:15.9]}
15... Nxe3 {[%clk 0:02:33.5]} 16. Ncxe3 {[%clk 0:02:16.1]} 16... Bg5 {[%clk
0:02:33.1]} 17. Nc2 {[%clk 0:02:08.4]} 17... Be6 {[%clk 0:02:31]} 18. Rad1
{[%clk 0:02:03.5]} 18... Bxd5 {[%clk 0:02:30.2]} 19. cxd5 {[%clk 0:01:42.4]}
19... Ne7 {[%clk 0:02:23.8]} 20. Ne3 {[%clk 0:01:42.1]} 20... Bxe3 {[%clk
0:02:23.3]} 21. Qxe3 {[%clk 0:01:40.8]} 21... Qb6 {[%clk 0:02:19.6]} 22. Qxb6
{[%clk 0:01:36.7]} 22... Rxb6 {[%clk 0:02:19.1]} 23. Rc1 {[%clk 0:01:37.3]}
23... Rc8 {[%clk 0:02:18.9]} 24. Rxc8+ {[%clk 0:01:35.9]} 24... Nxc8 {[%clk
0:02:19]} 25. Rc1 {[%clk 0:01:35.5]} 25... Rb8 {[%clk 0:02:18.1]} 26. Rc6 {[%clk
0:01:34.3]} 26... a4 {[%clk 0:02:10.8]} 27. Ba6 {[%clk 0:01:32.9]} 27... Nb6
{[%clk 0:02:06.2]} 28. Rxd6 {[%clk 0:01:32.3]} 28... a3 {[%clk 0:02:03.9]} 29.
bxa3 {[%clk 0:01:29]} 29... bxa3 {[%clk 0:02:04.1]} 30. Rc6 {[%clk 0:01:28.9]}
30... Kf8 {[%clk 0:02:02.5]} 31. Rc7 {[%clk 0:01:27.2]} 31... Na8 {[%clk
0:01:54.8]} 32. Rc3 {[%clk 0:01:22.3]} 32... Ke7 {[%clk 0:01:50.5]} 33. Rxa3
{[%clk 0:01:21.1]} 33... Nc7 {[%clk 0:01:50.1]} 34. Bd3 {[%clk 0:01:19.8]} 34...
Kd6 {[%clk 0:01:48.4]} 35. Kf1 {[%clk 0:01:17.3]} 35... Rb2 {[%clk 0:01:46.1]}
36. Bc4 {[%clk 0:01:08.8]} 36... Rb4 {[%clk 0:01:44]} 37. Rc3 {[%clk 0:01:06.5]}
37... g6 {[%clk 0:01:37.8]} 38. Bb3 {[%clk 0:01:05.7]} 38... Nb5 {[%clk
0:01:34.3]} 39. Rc4 {[%clk 0:01:01.7]} 39... Rxc4 {[%clk 0:01:32.7]} 40. Bxc4
{[%clk 0:01:01.8]} 40... Nc3 {[%clk 0:01:30.4]} 41. Ke1 {[%clk 0:01:01.1]} 41...
Nxe4 {[%clk 0:01:29.6]} 42. f3 {[%clk 0:00:58.3]} 42... Nf6 {[%clk 0:01:25.2]}
43. Kd2 {[%clk 0:00:56]} 43... Kc5 {[%clk 0:01:25]} 44. Bb3 {[%clk 0:00:55]}
44... Kd4 {[%clk 0:01:24.1]} 45. a4 {[%clk 0:00:53.5]} 45... Ne8 {[%clk
0:01:21.2]} 46. a5 {[%clk 0:00:52.3]} 46... Kc5 {[%clk 0:01:21.5]} 47. Kc3
{[%clk 0:00:50]} 47... Kb5 {[%clk 0:01:21.7]} 48. Ba4+ {[%clk 0:00:45.7]} 48...
Kxa4 {[%clk 0:01:22]} 49. a6 {[%clk 0:00:46]} 49... Nd6 {[%clk 0:01:21.2]} 50.
a7 {[%clk 0:00:44.9]} 50... Nb5+ {[%clk 0:01:21.3]} 51. Kc4 {[%clk 0:00:43.7]}
51... Nxa7 {[%clk 0:01:21.5]} 52. Kc5 {[%clk 0:00:44.2]} 52... Nb5 {[%clk
0:01:08]} 53. d6 {[%clk 0:00:43.7]} 53... Nd4 {[%clk 0:01:06.8]} 54. d7 {[%clk
0:00:41.3]} 54... f6 {[%clk 0:01:04.1]} 55. Kd6 {[%clk 0:00:40.2]} 55... Nf5+
{[%clk 0:00:55.8]} 56. Ke6 {[%clk 0:00:20.1]} 56... Nd4+ {[%clk 0:00:55.6]} 57.
Kd5 {[%clk 0:00:20.4]} 1-0

[Event "Late-Titled-Tuesday-Blitz-March-12-2024"]
[Site "Chess.com"]
[Date "2024.03.12"]
[Round "7"]
[White "grandcoach"]
[Black "cthake"]
[Result "1/2-1/2"]
[WhiteElo "2191"]
[BlackElo "1741"]
[TimeControl "180+1"]
[EndTime "15:16:38 PDT"]
[Termination "Game drawn by repetition"]

1. e4 {[%clk 0:03:00.4]} 1... c5 {[%clk 0:02:59.1]} 2. b4 {[%clk 0:02:59.7]}
2... cxb4 {[%clk 0:02:57.9]} 3. a3 {[%clk 0:03:00.4]} 3... bxa3 {[%clk
0:02:54.3]} 4. d4 {[%clk 0:02:59.9]} 4... d6 {[%clk 0:02:52.6]} 5. Bd3 {[%clk
0:02:57.4]} 5... g6 {[%clk 0:02:49.6]} 6. Ne2 {[%clk 0:02:55.9]} 6... Bg7 {[%clk
0:02:49.5]} 7. O-O {[%clk 0:02:54.6]} 7... Nc6 {[%clk 0:02:48.2]} 8. c3 {[%clk
0:02:54.1]} 8... Bd7 {[%clk 0:02:44]} 9. f4 {[%clk 0:02:54.1]} 9... Nf6 {[%clk
0:02:39.3]} 10. Nxa3 {[%clk 0:02:51.9]} 10... O-O {[%clk 0:02:38.4]} 11. f5
{[%clk 0:02:46.8]} 11... a6 {[%clk 0:02:22.4]} 12. Nc2 {[%clk 0:02:43.2]} 12...
b5 {[%clk 0:02:18.1]} 13. Qe1 {[%clk 0:02:41.2]} 13... Qc7 {[%clk 0:02:15.6]}
14. Qh4 {[%clk 0:02:39.7]} 14... e5 {[%clk 0:01:38.4]} 15. Bg5 {[%clk
0:02:16.8]} 15... Nh5 {[%clk 0:01:15.9]} 16. f6 {[%clk 0:02:13.4]} 16... Bh8
{[%clk 0:01:14.2]} 17. Rf3 {[%clk 0:02:04.6]} 17... exd4 {[%clk 0:01:13.7]} 18.
cxd4 {[%clk 0:02:03.6]} 18... Qc8 {[%clk 0:01:02.3]} 19. Rg3 {[%clk 0:02:02.8]}
19... Nxg3 {[%clk 0:00:54.6]} 20. Nxg3 {[%clk 0:02:00.3]} 20... Nxd4 {[%clk
0:00:52]} 21. Nxd4 {[%clk 0:01:59]} 21... Qc3 {[%clk 0:00:52.2]} 22. Ngf5 {[%clk
0:01:45.5]} 22... Qxa1+ {[%clk 0:00:51.8]} 23. Bf1 {[%clk 0:01:43.5]} 23... Bxf5
{[%clk 0:00:43.6]} 24. Nxf5 {[%clk 0:01:39.1]} 24... h5 {[%clk 0:00:43.6]} 25.
Ne7+ {[%clk 0:01:27]} 25... Kh7 {[%clk 0:00:43.1]} 26. h3 {[%clk 0:00:48.1]}
26... Rac8 {[%clk 0:00:42.6]} 27. Nxc8 {[%clk 0:00:25.6]} 27... Rxc8 {[%clk
0:00:42.5]} 28. Qf2 {[%clk 0:00:17.9]} 28... Qe5 {[%clk 0:00:38.3]} 29. h4
{[%clk 0:00:16.4]} 29... Rc5 {[%clk 0:00:34.5]} 30. Qf3 {[%clk 0:00:15]} 30...
d5 {[%clk 0:00:28.3]} 31. exd5 {[%clk 0:00:14.3]} 31... Rxd5 {[%clk 0:00:28.5]}
32. g3 {[%clk 0:00:12.7]} 32... Qd4+ {[%clk 0:00:22.4]} 33. Kg2 {[%clk
0:00:12.7]} 33... Qb2+ {[%clk 0:00:21.7]} 34. Kh3 {[%clk 0:00:10.6]} 34... Qe5
{[%clk 0:00:20.6]} 35. Kg2 {[%clk 0:00:10.2]} 35... Qb2+ {[%clk 0:00:19.5]} 36.
Kh3 {[%clk 0:00:10.4]} 36... Qe5 {[%clk 0:00:19.3]} 37. Kg2 {[%clk 0:00:10.4]}
37... Qe6 {[%clk 0:00:19.4]} 38. Kh2 {[%clk 0:00:10.1]} 38... Qe5 {[%clk
0:00:18]} 39. Kg2 {[%clk 0:00:10.4]} 1/2-1/2

[Event "Late-Titled-Tuesday-Blitz-March-12-2024"]
[Site "Chess.com"]
[Date "2024.03.12"]
[Round "7"]
[White "ATM622"]
[Black "ChessSwole"]
[Result "1-0"]
[WhiteElo "2490"]
[BlackElo "2668"]
[TimeControl "180+1"]
[EndTime "15:16:39 PDT"]
[Termination "ATM622 won on time"]

1. d4 {[%clk 0:02:57.8]} 1... d5 {[%clk 0:02:59.5]} 2. c4 {[%clk 0:02:58.7]}
2... e6 {[%clk 0:02:59.5]} 3. Nf3 {[%clk 0:02:58.8]} 3... Nf6 {[%clk 0:02:58.8]}
4. g3 {[%clk 0:02:59]} 4... Be7 {[%clk 0:02:59]} 5. Bg2 {[%clk 0:02:59.4]} 5...
O-O {[%clk 0:02:58.5]} 6. O-O {[%clk 0:02:59.9]} 6... dxc4 {[%clk 0:02:59.1]} 7.
Ne5 {[%clk 0:02:59.1]} 7... Qd6 {[%clk 0:02:59.2]} 8. Nxc4 {[%clk 0:02:58.4]}
8... Qa6 {[%clk 0:02:59.8]} 9. b3 {[%clk 0:02:57.8]} 9... Rd8 {[%clk 0:02:58.9]}
10. Bb2 {[%clk 0:02:57.5]} 10... c5 {[%clk 0:02:58.2]} 11. e3 {[%clk 0:02:56.8]}
11... Nc6 {[%clk 0:02:53.7]} 12. Bxc6 {[%clk 0:02:56.7]} 12... bxc6 {[%clk
0:02:50.4]} 13. Nbd2 {[%clk 0:02:54.6]} 13... cxd4 {[%clk 0:02:49.3]} 14. Bxd4
{[%clk 0:02:48.6]} 14... c5 {[%clk 0:02:48.8]} 15. Bb2 {[%clk 0:02:44.6]} 15...
Bb7 {[%clk 0:02:48.9]} 16. f3 {[%clk 0:02:42.7]} 16... Nd5 {[%clk 0:02:45.6]}
17. Qe2 {[%clk 0:02:34]} 17... Rac8 {[%clk 0:02:30]} 18. Rfd1 {[%clk 0:02:17]}
18... Ba8 {[%clk 0:02:17.7]} 19. Rac1 {[%clk 0:02:14.2]} 19... Nb4 {[%clk
0:02:17.3]} 20. Ne4 {[%clk 0:02:10.9]} 20... Bxe4 {[%clk 0:02:05.4]} 21. fxe4
{[%clk 0:02:11.8]} 21... Qxa2 {[%clk 0:01:52]} 22. Qg4 {[%clk 0:01:55.4]} 22...
Bf8 {[%clk 0:01:51.9]} 23. Rxd8 {[%clk 0:01:49.6]} 23... Rxd8 {[%clk 0:01:52.8]}
24. h4 {[%clk 0:01:43]} 24... Qxb3 {[%clk 0:01:43.5]} 25. Bf6 {[%clk 0:01:35]}
25... Rb8 {[%clk 0:01:14.9]} 26. h5 {[%clk 0:01:14.6]} 26... Nd3 {[%clk
0:01:10.7]} 27. Bxg7 {[%clk 0:01:10.4]} 27... f5 {[%clk 0:00:53.8]} 28. exf5
{[%clk 0:01:03.7]} 28... exf5 {[%clk 0:00:51.1]} 29. Qg5 {[%clk 0:00:55.7]}
29... Bxg7 {[%clk 0:00:26.2]} 30. h6 {[%clk 0:00:55.4]} 30... Qb7 {[%clk
0:00:20.1]} 31. Nd6 {[%clk 0:00:50.9]} 31... Qd7 {[%clk 0:00:15.7]} 32. Rd1
{[%clk 0:00:49.2]} 32... Ne5 {[%clk 0:00:15.5]} 33. Rf1 {[%clk 0:00:34.2]} 33...
Rf8 {[%clk 0:00:10]} 34. Nxf5 {[%clk 0:00:30.6]} 34... Ng6 {[%clk 0:00:08.4]}
35. hxg7 {[%clk 0:00:28.9]} 35... Re8 {[%clk 0:00:07.9]} 36. Qf6 {[%clk
0:00:21.8]} 1-0

[Event "Late-Titled-Tuesday-Blitz-March-12-2024"]
[Site "Chess.com"]
[Date "2024.03.12"]
[Round "7"]
[White "Roedor"]
[Black "KorolDimitriy75"]
[Result "0-1"]
[WhiteElo "2269"]
[BlackElo "2423"]
[TimeControl "180+1"]
[EndTime "15:16:40 PDT"]
[Termination "KorolDimitriy75 won on time"]

1. c4 {[%clk 0:02:54.9]} 1... c5 {[%clk 0:03:00.2]} 2. g3 {[%clk 0:02:54.6]}
2... g6 {[%clk 0:03:00.7]} 3. Bg2 {[%clk 0:02:55.2]} 3... Bg7 {[%clk 0:03:01.3]}
4. Nc3 {[%clk 0:02:55.9]} 4... Nc6 {[%clk 0:03:02]} 5. Nf3 {[%clk 0:02:56.5]}
5... Nh6 {[%clk 0:03:02.2]} 6. d4 {[%clk 0:02:55]} 6... cxd4 {[%clk 0:03:01.6]}
7. Bxh6 {[%clk 0:02:52.8]} 7... Bxh6 {[%clk 0:03:02.5]} 8. Nxd4 {[%clk
0:02:53.1]} 8... Bg7 {[%clk 0:03:02.7]} 9. Nc2 {[%clk 0:02:38.4]} 9... Qa5
{[%clk 0:02:53.5]} 10. O-O {[%clk 0:02:36.7]} 10... Bxc3 {[%clk 0:02:50.7]} 11.
bxc3 {[%clk 0:02:37.6]} 11... Qxc3 {[%clk 0:02:51.2]} 12. Ne3 {[%clk 0:02:38]}
12... O-O {[%clk 0:02:41.8]} 13. Rc1 {[%clk 0:02:35.1]} 13... Qa5 {[%clk
0:02:24.1]} 14. h4 {[%clk 0:02:20.8]} 14... d6 {[%clk 0:02:13.4]} 15. Nd5 {[%clk
0:02:07.9]} 15... Qxa2 {[%clk 0:01:27.7]} 16. h5 {[%clk 0:02:05.6]} 16... Bd7
{[%clk 0:01:10.8]} 17. Rc2 {[%clk 0:01:41.4]} 17... Qa5 {[%clk 0:01:08]} 18. Qc1
{[%clk 0:01:40.2]} 18... Rac8 {[%clk 0:00:53]} 19. Qg5 {[%clk 0:01:04.4]} 19...
Rfe8 {[%clk 0:00:49.4]} 20. Rb1 {[%clk 0:00:54.9]} 20... b6 {[%clk 0:00:45.6]}
21. Be4 {[%clk 0:00:49.8]} 21... Qc5 {[%clk 0:00:33.8]} 22. hxg6 {[%clk
0:00:46.2]} 22... hxg6 {[%clk 0:00:34.7]} 23. Bxg6 {[%clk 0:00:46.2]} 23... fxg6
{[%clk 0:00:33.5]} 24. Qxg6+ {[%clk 0:00:46.4]} 24... Kf8 {[%clk 0:00:33.1]} 25.
Rb5 {[%clk 0:00:37.1]} 25... Qd4 {[%clk 0:00:32.6]} 26. Rc3 {[%clk 0:00:29.6]}
26... Ne5 {[%clk 0:00:31.8]} 27. Qh6+ {[%clk 0:00:24.1]} 27... Kg8 {[%clk
0:00:30.9]} 28. Qg5+ {[%clk 0:00:11.4]} 28... Kf7 {[%clk 0:00:29.1]} 29. Qh5+
{[%clk 0:00:03.3]} 29... Kg7 {[%clk 0:00:28.3]} 30. Qg5+ {[%clk 0:00:03.6]}
30... Ng6 {[%clk 0:00:25.5]} 31. Nf4 {[%clk 0:00:01.4]} 31... Qxc3 {[%clk
0:00:18.1]} 32. Qxg6+ {[%clk 0:00:01.4]} 32... Kf8 {[%clk 0:00:17.9]} 33. Rh5
{[%clk 0:00:01.5]} 33... Rxc4 {[%clk 0:00:16.3]} 0-1

[Event "Late-Titled-Tuesday-Blitz-March-12-2024"]
[Site "Chess.com"]
[Date "2024.03.12"]
[Round "7"]
[White "Msb2"]
[Black "Firouzja2003"]
[Result "0-1"]
[WhiteElo "3028"]
[BlackElo "3144"]
[TimeControl "180+1"]
[EndTime "15:16:42 PDT"]
[Termination "Firouzja2003 won by checkmate"]

1. d4 {[%clk 0:03:00.9]} 1... Nf6 {[%clk 0:02:55]} 2. c4 {[%clk 0:03:00.8]} 2...
g6 {[%clk 0:02:54.3]} 3. Nc3 {[%clk 0:03:01.5]} 3... Bg7 {[%clk 0:02:54.7]} 4.
e4 {[%clk 0:03:02.1]} 4... d6 {[%clk 0:02:55.4]} 5. Nf3 {[%clk 0:03:02.7]} 5...
O-O {[%clk 0:02:55.8]} 6. Be2 {[%clk 0:03:03.4]} 6... e5 {[%clk 0:02:56.2]} 7.
Be3 {[%clk 0:03:04.1]} 7... Ng4 {[%clk 0:02:53.5]} 8. Bg5 {[%clk 0:03:04.2]}
8... f6 {[%clk 0:02:53.7]} 9. Bh4 {[%clk 0:03:05]} 9... Qe8 {[%clk 0:02:46.3]}
10. h3 {[%clk 0:02:49]} 10... Nh6 {[%clk 0:02:44.3]} 11. O-O {[%clk 0:02:49.3]}
11... Nc6 {[%clk 0:02:39.7]} 12. c5 {[%clk 0:02:35.5]} 12... dxc5 {[%clk
0:02:36.8]} 13. Bc4+ {[%clk 0:02:28.4]} 13... Kh8 {[%clk 0:02:32.3]} 14. dxc5
{[%clk 0:02:28.6]} 14... Qe7 {[%clk 0:02:27.6]} 15. Nd5 {[%clk 0:02:27.8]} 15...
Qxc5 {[%clk 0:02:27.5]} 16. Rc1 {[%clk 0:02:10.9]} 16... Qd6 {[%clk 0:02:24.1]}
17. Qe2 {[%clk 0:02:08.3]} 17... g5 {[%clk 0:02:22.5]} 18. Bg3 {[%clk
0:02:07.5]} 18... g4 {[%clk 0:02:23.1]} 19. hxg4 {[%clk 0:02:02.5]} 19... Bxg4
{[%clk 0:02:24]} 20. Rfd1 {[%clk 0:02:03.1]} 20... f5 {[%clk 0:02:12.5]} 21. Ne3
{[%clk 0:01:31.1]} 21... Qg6 {[%clk 0:01:54.6]} 22. Nxg4 {[%clk 0:01:17.4]}
22... Qxg4 {[%clk 0:01:53.4]} 23. Bd5 {[%clk 0:01:07.5]} 23... f4 {[%clk
0:01:42.7]} 24. Bh2 {[%clk 0:01:07.4]} 24... Rf6 {[%clk 0:01:29.2]} 25. Bxc6
{[%clk 0:00:50.1]} 25... Rg6 {[%clk 0:01:29.4]} 26. g3 {[%clk 0:00:35.1]} 26...
bxc6 {[%clk 0:01:24.4]} 27. Rc3 {[%clk 0:00:35.4]} 27... Rf8 {[%clk 0:01:18]}
28. Rcd3 {[%clk 0:00:35.8]} 28... Rgf6 {[%clk 0:00:54.1]} 29. Kg2 {[%clk
0:00:36.1]} 29... Nf7 {[%clk 0:00:54]} 30. Ng1 {[%clk 0:00:32.1]} 30... Qg6
{[%clk 0:00:45.1]} 31. Kh1 {[%clk 0:00:30.6]} 31... Ng5 {[%clk 0:00:43.2]} 32.
gxf4 {[%clk 0:00:26.7]} 32... exf4 {[%clk 0:00:29.8]} 33. f3 {[%clk 0:00:27]}
33... Qh5 {[%clk 0:00:22.4]} 34. Qg2 {[%clk 0:00:27.3]} 34... Rg6 {[%clk
0:00:19.5]} 35. Qe2 {[%clk 0:00:18.7]} 35... Ne6 {[%clk 0:00:19.4]} 36. Rd7
{[%clk 0:00:18.2]} 36... Rg8 {[%clk 0:00:19.7]} 37. Rf7 {[%clk 0:00:17.1]} 37...
Rxg1+ {[%clk 0:00:19.1]} 38. Rxg1 {[%clk 0:00:18]} 38... Qxf7 {[%clk 0:00:19.3]}
39. Qc4 {[%clk 0:00:18.9]} 39... Bd4 {[%clk 0:00:17.7]} 40. Rxg8+ {[%clk
0:00:17]} 40... Kxg8 {[%clk 0:00:18.6]} 41. Qa6 {[%clk 0:00:16.3]} 41... h6
{[%clk 0:00:15.9]} 42. Qxa7 {[%clk 0:00:16.4]} 42... Bxa7 {[%clk 0:00:15.3]} 43.
Bxf4 {[%clk 0:00:17.3]} 43... Nxf4 {[%clk 0:00:15.6]} 44. b4 {[%clk 0:00:18.2]}
44... Qh5# {[%clk 0:00:15.8]} 0-1

[Event "Late-Titled-Tuesday-Blitz-March-12-2024"]
[Site "Chess.com"]
[Date "2024.03.12"]
[Round "7"]
[White "Thjop"]
[Black "janhelmer03"]
[Result "1-0"]
[WhiteElo "2661"]
[BlackElo "2396"]
[TimeControl "180+1"]
[EndTime "15:16:44 PDT"]
[Termination "Thjop won on time"]

1. e4 {[%clk 0:02:25.8]} 1... c5 {[%clk 0:02:59.3]} 2. Nf3 {[%clk 0:02:24.7]}
2... d6 {[%clk 0:02:59.1]} 3. d4 {[%clk 0:02:23.9]} 3... cxd4 {[%clk 0:03:00]}
4. Nxd4 {[%clk 0:02:24.5]} 4... Nf6 {[%clk 0:03:00.8]} 5. Nc3 {[%clk 0:02:24.5]}
5... g6 {[%clk 0:03:01.4]} 6. Be3 {[%clk 0:02:23.4]} 6... Bg7 {[%clk 0:03:01.9]}
7. f3 {[%clk 0:02:22.8]} 7... O-O {[%clk 0:03:02.4]} 8. Qd2 {[%clk 0:02:21.9]}
8... Nc6 {[%clk 0:03:02.2]} 9. O-O-O {[%clk 0:02:20.6]} 9... d5 {[%clk
0:03:02.7]} 10. exd5 {[%clk 0:02:19.7]} 10... Nxd5 {[%clk 0:03:01.6]} 11. Nxc6
{[%clk 0:02:17.2]} 11... bxc6 {[%clk 0:03:01.9]} 12. Bd4 {[%clk 0:02:16.5]}
12... e5 {[%clk 0:03:01.2]} 13. Bc5 {[%clk 0:02:15.4]} 13... Re8 {[%clk
0:03:01.5]} 14. Ne4 {[%clk 0:02:13.9]} 14... Qc7 {[%clk 0:02:54.7]} 15. h4
{[%clk 0:02:07.1]} 15... f5 {[%clk 0:02:28.9]} 16. Nd6 {[%clk 0:02:00.3]} 16...
Rd8 {[%clk 0:02:29.3]} 17. Nxc8 {[%clk 0:01:59.1]} 17... Raxc8 {[%clk
0:02:29.8]} 18. h5 {[%clk 0:01:56.2]} 18... Nb6 {[%clk 0:02:27.4]} 19. Bxb6
{[%clk 0:01:54.5]} 19... Rxd2 {[%clk 0:02:05.7]} 20. Bc4+ {[%clk 0:01:53]} 20...
Kf8 {[%clk 0:02:01.4]} 21. Bxc7 {[%clk 0:01:50.3]} 21... Rxd1+ {[%clk
0:01:57.9]} 22. Rxd1 {[%clk 0:01:47.9]} 22... Rxc7 {[%clk 0:01:54.2]} 23. hxg6
{[%clk 0:01:46.8]} 23... hxg6 {[%clk 0:01:53.8]} 24. Rd6 {[%clk 0:01:43.7]}
24... Bh6+ {[%clk 0:01:20.3]} 25. Kd1 {[%clk 0:01:43.5]} 25... Kg7 {[%clk
0:01:20.4]} 26. c3 {[%clk 0:01:35.2]} 26... Bg5 {[%clk 0:01:13.6]} 27. Kc2
{[%clk 0:01:31.8]} 27... Be7 {[%clk 0:01:13.3]} 28. Re6 {[%clk 0:01:29.3]} 28...
Bf6 {[%clk 0:01:13.7]} 29. b4 {[%clk 0:01:22.4]} 29... c5 {[%clk 0:00:38.8]} 30.
b5 {[%clk 0:01:19.5]} 30... Rd7 {[%clk 0:00:38.5]} 31. a4 {[%clk 0:00:38.9]}
31... Rc7 {[%clk 0:00:10.3]} 32. a5 {[%clk 0:00:37.9]} 32... Rd7 {[%clk
0:00:09.5]} 33. b6 {[%clk 0:00:22]} 33... axb6 {[%clk 0:00:09.9]} 34. axb6
{[%clk 0:00:22.1]} 34... Bd8 {[%clk 0:00:03.9]} 35. Ba6 {[%clk 0:00:19]} 35...
Kf7 {[%clk 0:00:02.2]} 36. Rc6 {[%clk 0:00:18.9]} 36... Ke7 {[%clk 0:00:01.3]}
37. b7 {[%clk 0:00:18]} 37... Bc7 {[%clk 0:00:01.1]} 38. Rxc7 {[%clk 0:00:17.8]}
1-0

[Event "Late-Titled-Tuesday-Blitz-March-12-2024"]
[Site "Chess.com"]
[Date "2024.03.12"]
[Round "7"]
[White "MyDream003"]
[Black "newyorkmouse"]
[Result "1-0"]
[WhiteElo "2772"]
[BlackElo "2581"]
[TimeControl "180+1"]
[EndTime "15:16:45 PDT"]
[Termination "MyDream003 won on time"]

1. c4 {[%clk 0:02:59.7]} 1... b6 {[%clk 0:02:56.6]} 2. Nc3 {[%clk 0:02:49.3]}
2... Bb7 {[%clk 0:02:56.7]} 3. e4 {[%clk 0:02:48.7]} 3... e6 {[%clk 0:02:56.5]}
4. Nf3 {[%clk 0:02:47.5]} 4... g6 {[%clk 0:02:57]} 5. d4 {[%clk 0:02:45.1]} 5...
Bg7 {[%clk 0:02:57.5]} 6. Be2 {[%clk 0:02:44.8]} 6... Ne7 {[%clk 0:02:57.4]} 7.
O-O {[%clk 0:02:44.8]} 7... O-O {[%clk 0:02:57.8]} 8. Qc2 {[%clk 0:02:43.1]}
8... d6 {[%clk 0:02:58.1]} 9. Bg5 {[%clk 0:02:40.3]} 9... h6 {[%clk 0:02:57.7]}
10. Be3 {[%clk 0:02:39.6]} 10... Nd7 {[%clk 0:02:57]} 11. Rfd1 {[%clk 0:02:37]}
11... a6 {[%clk 0:02:57]} 12. Rac1 {[%clk 0:02:23.4]} 12... Kh7 {[%clk
0:02:56.4]} 13. c5 {[%clk 0:02:22]} 13... bxc5 {[%clk 0:02:51.6]} 14. dxc5
{[%clk 0:02:22.1]} 14... d5 {[%clk 0:02:37.1]} 15. h4 {[%clk 0:01:50.1]} 15...
Qe8 {[%clk 0:02:18.4]} 16. h5 {[%clk 0:01:49.4]} 16... dxe4 {[%clk 0:02:13.1]}
17. Nxe4 {[%clk 0:01:45]} 17... Ne5 {[%clk 0:02:13.3]} 18. Bd4 {[%clk
0:01:15.2]} 18... Nxf3+ {[%clk 0:01:38.6]} 19. Bxf3 {[%clk 0:01:16.1]} 19...
Bxd4 {[%clk 0:01:32.6]} 20. Rxd4 {[%clk 0:01:17]} 20... f5 {[%clk 0:01:33.4]}
21. Nd6 {[%clk 0:01:00.8]} 21... cxd6 {[%clk 0:01:21.7]} 22. Bxb7 {[%clk
0:01:01.1]} 22... dxc5 {[%clk 0:01:22.2]} 23. Qxc5 {[%clk 0:00:59.4]} 23... Rb8
{[%clk 0:01:21.3]} 24. hxg6+ {[%clk 0:00:47.8]} 24... Nxg6 {[%clk 0:01:01.1]}
25. Bxa6 {[%clk 0:00:47.6]} 25... Rxb2 {[%clk 0:00:55.1]} 26. Rb4 {[%clk
0:00:47.2]} 26... Rxa2 {[%clk 0:00:52.3]} 27. Bc4 {[%clk 0:00:47]} 27... Ra8
{[%clk 0:00:43.2]} 28. Re1 {[%clk 0:00:44.6]} 28... Rc8 {[%clk 0:00:42.5]} 29.
Rb7+ {[%clk 0:00:42.8]} 29... Kh8 {[%clk 0:00:31.6]} 30. Qd4+ {[%clk 0:00:39.7]}
30... e5 {[%clk 0:00:31.8]} 31. Qa7 {[%clk 0:00:39.6]} 31... Ne7 {[%clk
0:00:09]} 32. Rxe7 {[%clk 0:00:39]} 32... Qg6 {[%clk 0:00:09.9]} 33. Bf7 {[%clk
0:00:30]} 33... Qg5 {[%clk 0:00:08]} 34. Be6 {[%clk 0:00:29.5]} 34... Qg6 {[%clk
0:00:01.3]} 35. Bxc8 {[%clk 0:00:29]} 35... Rxc8 {[%clk 0:00:02.2]} 36. Qe3
{[%clk 0:00:25.7]} 1-0